[Event "*** Titled Tuesday Blitz"]
[Site "Chess.com"]
[Date "2020.05.26"]
[Round "5"]
[White "Belka1989"]
[Black "IriBu"]
[Result "0-1"]
[WhiteElo "2361"]
[BlackElo "2547"]
[TimeControl "180+1"]
[EndTime "10:55:44 PDT"]
[Termination "IriBu won by resignation"]

1. e4 {[%clk 0:03:00.9]} 1... Nf6 {[%clk 0:02:57]} 2. e5 {[%clk 0:03:00.9]} 2...
Nd5 {[%clk 0:02:56.9]} 3. c4 {[%clk 0:03:01.8]} 3... Nb6 {[%clk 0:02:56.5]} 4.
a4 {[%clk 0:03:02.6]} 4... a5 {[%clk 0:02:55.7]} 5. Ra3 {[%clk 0:03:02.4]} 5...
d6 {[%clk 0:02:52.6]} 6. exd6 {[%clk 0:03:03.3]} 6... exd6 {[%clk 0:02:49.3]} 7.
Rg3 {[%clk 0:03:03.7]} 7... g6 {[%clk 0:02:47.2]} 8. d4 {[%clk 0:02:56.1]} 8...
Nc6 {[%clk 0:02:44.4]} 9. Nf3 {[%clk 0:02:54.4]} 9... Bg7 {[%clk 0:02:43]} 10.
Be2 {[%clk 0:02:52.4]} 10... Bf5 {[%clk 0:02:41.5]} 11. Nc3 {[%clk 0:02:49.1]}
11... O-O {[%clk 0:02:33.2]} 12. h4 {[%clk 0:02:45.5]} 12... h5 {[%clk
0:02:32.1]} 13. Be3 {[%clk 0:02:37.6]} 13... Nb4 {[%clk 0:02:24.1]} 14. Kf1
{[%clk 0:02:32.1]} 14... c6 {[%clk 0:02:14.7]} 15. Qd2 {[%clk 0:02:29.9]} 15...
d5 {[%clk 0:02:06.1]} 16. b3 {[%clk 0:02:27.8]} 16... Re8 {[%clk 0:01:53.8]} 17.
Ng5 {[%clk 0:02:21.5]} 17... Nc2 {[%clk 0:01:34.3]} 18. c5 {[%clk 0:02:16.1]}
18... Nd7 {[%clk 0:01:30.9]} 19. Kg1 {[%clk 0:02:13.2]} 19... Nf6 {[%clk
0:01:29.7]} 20. Bd1 {[%clk 0:01:47.8]} 20... Nxe3 {[%clk 0:01:28.7]} 21. fxe3
{[%clk 0:01:46.9]} 21... Qd7 {[%clk 0:01:20.4]} 22. Bc2 {[%clk 0:01:43]} 22...
Bxc2 {[%clk 0:01:16.5]} 23. Qxc2 {[%clk 0:01:43.9]} 23... Ng4 {[%clk 0:01:09.2]}
24. Qd2 {[%clk 0:01:41.2]} 24... Re7 {[%clk 0:01:04.4]} 25. Rhh3 {[%clk
0:01:25.8]} 25... Rae8 {[%clk 0:01:00.5]} 26. Nd1 {[%clk 0:01:23.1]} 26... Bh6
{[%clk 0:00:57.3]} 27. Qd3 {[%clk 0:01:09.7]} 27... Kg7 {[%clk 0:00:49.2]} 28.
Nf3 {[%clk 0:00:49.1]} 28... Bxe3+ {[%clk 0:00:40.5]} 29. Nxe3 {[%clk
0:00:46.8]} 29... Rxe3 {[%clk 0:00:40.2]} 30. Qd2 {[%clk 0:00:40.8]} 30... Qf5
{[%clk 0:00:30.8]} 0-1

[Event "*** Titled Tuesday Blitz"]
[Site "Chess.com"]
[Date "2020.05.26"]
[Round "5"]
[White "zala02"]
[Black "Kildepiotr"]
[Result "0-1"]
[WhiteElo "2242"]
[BlackElo "2476"]
[TimeControl "180+1"]
[EndTime "10:55:45 PDT"]
[Termination "Kildepiotr won by resignation"]

1. d4 {[%clk 0:03:00.9]} 1... c5 {[%clk 0:02:59.4]} 2. d5 {[%clk 0:02:54.2]}
2... e5 {[%clk 0:02:59.3]} 3. c4 {[%clk 0:02:48.8]} 3... d6 {[%clk 0:02:59]} 4.
Nc3 {[%clk 0:02:47.6]} 4... Be7 {[%clk 0:02:59.1]} 5. e4 {[%clk 0:02:46.9]} 5...
Bg5 {[%clk 0:02:59.1]} 6. g3 {[%clk 0:02:43.8]} 6... Bxc1 {[%clk 0:02:58.7]} 7.
Rxc1 {[%clk 0:02:44.7]} 7... Ne7 {[%clk 0:02:59.2]} 8. Bg2 {[%clk 0:02:44.6]}
8... O-O {[%clk 0:02:59.8]} 9. Nge2 {[%clk 0:02:43.5]} 9... Nd7 {[%clk
0:02:58.4]} 10. O-O {[%clk 0:02:43.4]} 10... f5 {[%clk 0:02:58.4]} 11. f4 {[%clk
0:02:40.7]} 11... exf4 {[%clk 0:02:56.2]} 12. Nxf4 {[%clk 0:02:40.1]} 12... Ne5
{[%clk 0:02:56.2]} 13. b3 {[%clk 0:02:34.7]} 13... N7g6 {[%clk 0:02:49.6]} 14.
Ne6 {[%clk 0:02:28.8]} 14... Bxe6 {[%clk 0:02:47.6]} 15. dxe6 {[%clk 0:02:29.7]}
15... f4 {[%clk 0:02:43.7]} 16. Nd5 {[%clk 0:02:09.2]} 16... fxg3 {[%clk
0:02:30.7]} 17. hxg3 {[%clk 0:02:07.8]} 17... Qg5 {[%clk 0:02:28.8]} 18. e7
{[%clk 0:01:28.6]} 18... Nxe7 {[%clk 0:02:25.2]} 19. Nxe7+ {[%clk 0:01:29.5]}
19... Qxe7 {[%clk 0:02:24.5]} 20. Qd5+ {[%clk 0:01:29.3]} 20... Kh8 {[%clk
0:02:24.5]} 21. Rcd1 {[%clk 0:01:16.7]} 21... Rxf1+ {[%clk 0:02:20.6]} 22. Kxf1
{[%clk 0:01:04.1]} 22... Rf8+ {[%clk 0:02:19.5]} 23. Kg1 {[%clk 0:01:04.4]}
23... Qg5 {[%clk 0:02:16.3]} 24. Qxd6 {[%clk 0:00:57.2]} 24... Re8 {[%clk
0:01:47.3]} 25. Rf1 {[%clk 0:00:52.7]} 25... h6 {[%clk 0:01:38.8]} 26. Rf8+
{[%clk 0:00:23.2]} 26... Rxf8 {[%clk 0:01:38.5]} 27. Qxf8+ {[%clk 0:00:24.1]}
27... Kh7 {[%clk 0:01:39.2]} 28. Qf5+ {[%clk 0:00:23.9]} 28... Qxf5 {[%clk
0:01:39.2]} 29. exf5 {[%clk 0:00:24.8]} 29... b6 {[%clk 0:01:39.5]} 30. Be4
{[%clk 0:00:24.1]} 30... Kg8 {[%clk 0:01:37.3]} 31. Kg2 {[%clk 0:00:24.3]} 31...
Kf7 {[%clk 0:01:37.4]} 32. Kf2 {[%clk 0:00:24.6]} 32... Kf6 {[%clk 0:01:36.6]}
33. Ke3 {[%clk 0:00:23.9]} 33... Kg5 {[%clk 0:01:35.7]} 34. Bb1 {[%clk
0:00:19.8]} 34... Kg4 {[%clk 0:01:26.9]} 35. Ke4 {[%clk 0:00:20.1]} 35... Nf3
{[%clk 0:01:18.8]} 36. Kd5 {[%clk 0:00:14.3]} 36... Kxg3 {[%clk 0:01:18.4]} 37.
Ke6 {[%clk 0:00:14.4]} 37... Ng5+ {[%clk 0:01:10.1]} 38. Ke7 {[%clk 0:00:14.7]}
38... h5 {[%clk 0:01:10.2]} 39. Ke8 {[%clk 0:00:15]} 39... h4 {[%clk 0:01:09.8]}
40. Kf8 {[%clk 0:00:15.5]} 40... h3 {[%clk 0:01:09.5]} 41. Kxg7 {[%clk
0:00:14.8]} 41... h2 {[%clk 0:01:09.5]} 42. Kg6 {[%clk 0:00:10]} 42... h1=Q
{[%clk 0:01:07.6]} 43. Kxg5 {[%clk 0:00:10.5]} 43... Qxb1 {[%clk 0:01:07.4]} 0-1

[Event "*** Titled Tuesday Blitz"]
[Site "Chess.com"]
[Date "2020.05.26"]
[Round "5"]
[White "NefeLV"]
[Black "rugbyclub"]
[Result "0-1"]
[WhiteElo "1785"]
[BlackElo "2095"]
[TimeControl "180+1"]
[EndTime "10:55:47 PDT"]
[Termination "rugbyclub won by resignation"]

1. c4 {[%clk 0:02:42]} 1... e5 {[%clk 0:02:58.8]} 2. d3 {[%clk 0:02:39.3]} 2...
Nc6 {[%clk 0:02:56.1]} 3. Nc3 {[%clk 0:02:39.4]} 3... Bb4 {[%clk 0:02:55.8]} 4.
Bd2 {[%clk 0:02:39]} 4... f5 {[%clk 0:02:54.2]} 5. a3 {[%clk 0:02:38.7]} 5...
Bxc3 {[%clk 0:02:52.7]} 6. Bxc3 {[%clk 0:02:39.6]} 6... Nf6 {[%clk 0:02:49.2]}
7. e3 {[%clk 0:02:39.8]} 7... O-O {[%clk 0:02:47.9]} 8. Be2 {[%clk 0:02:39.6]}
8... d6 {[%clk 0:02:47.7]} 9. Nf3 {[%clk 0:02:39.1]} 9... a5 {[%clk 0:02:41]}
10. O-O {[%clk 0:02:38]} 10... a4 {[%clk 0:02:40.8]} 11. b4 {[%clk 0:02:34.6]}
11... axb3 {[%clk 0:02:39.3]} 12. Qxb3 {[%clk 0:02:34.3]} 12... Kh8 {[%clk
0:02:38.5]} 13. c5 {[%clk 0:02:30.1]} 13... Qe8 {[%clk 0:02:18.1]} 14. cxd6
{[%clk 0:02:27.3]} 14... cxd6 {[%clk 0:02:17.7]} 15. d4 {[%clk 0:02:22.2]} 15...
e4 {[%clk 0:02:17]} 16. Ng5 {[%clk 0:02:15.6]} 16... d5 {[%clk 0:02:16.4]} 17.
Nh3 {[%clk 0:02:13.6]} 17... Ra7 {[%clk 0:02:05.6]} 18. Nf4 {[%clk 0:02:05]}
18... Ne7 {[%clk 0:02:04.3]} 19. Bb4 {[%clk 0:02:03.4]} 19... Rf7 {[%clk
0:01:50.2]} 20. Rfc1 {[%clk 0:01:57.5]} 20... Bd7 {[%clk 0:01:45.3]} 21. Rc7
{[%clk 0:01:48.2]} 21... Qd8 {[%clk 0:01:40.8]} 22. Rac1 {[%clk 0:01:43.9]}
22... Nc6 {[%clk 0:01:40.6]} 23. Nxd5 {[%clk 0:01:22.7]} 23... Be6 {[%clk
0:01:40.1]} 24. R7xc6 {[%clk 0:00:57.4]} 24... bxc6 {[%clk 0:01:32.9]} 25. Qc3
{[%clk 0:00:51.7]} 25... Bxd5 {[%clk 0:01:29.4]} 26. Qc5 {[%clk 0:00:52]} 26...
Ra8 {[%clk 0:01:25.1]} 27. Rc2 {[%clk 0:00:47.4]} 27... g5 {[%clk 0:01:23]} 28.
Rc1 {[%clk 0:00:46.1]} 28... f4 {[%clk 0:01:22.7]} 29. exf4 {[%clk 0:00:44.2]}
29... gxf4 {[%clk 0:01:22.1]} 30. f3 {[%clk 0:00:43.1]} 30... e3 {[%clk
0:01:07.8]} 31. Bd3 {[%clk 0:00:38.9]} 31... Rg7 {[%clk 0:01:07.3]} 32. Kh1
{[%clk 0:00:37.9]} 32... Qg8 {[%clk 0:01:04.5]} 33. Rc2 {[%clk 0:00:37]} 33...
Bxf3 {[%clk 0:00:58.4]} 34. Qe5 {[%clk 0:00:27.4]} 34... Rxg2 {[%clk 0:00:37.8]}
0-1

[Event "*** Titled Tuesday Blitz"]
[Site "Chess.com"]
[Date "2020.05.26"]
[Round "5"]
[White "Kavyev_Ruslan"]
[Black "smshk35"]
[Result "0-1"]
[WhiteElo "2484"]
[BlackElo "2318"]
[TimeControl "180+1"]
[EndTime "10:55:48 PDT"]
[Termination "smshk35 won by resignation"]

1. e4 {[%clk 0:03:00.9]} 1... c5 {[%clk 0:02:59.6]} 2. Nf3 {[%clk 0:03:01.2]}
2... e6 {[%clk 0:02:59.7]} 3. c3 {[%clk 0:02:59.7]} 3... d5 {[%clk 0:02:58.9]}
4. exd5 {[%clk 0:02:56.1]} 4... Qxd5 {[%clk 0:02:58.6]} 5. d4 {[%clk 0:02:57]}
5... cxd4 {[%clk 0:02:58.6]} 6. cxd4 {[%clk 0:02:56.8]} 6... Nf6 {[%clk
0:02:59]} 7. Nc3 {[%clk 0:02:56.9]} 7... Qd6 {[%clk 0:02:59.3]} 8. Be2 {[%clk
0:02:54.6]} 8... Be7 {[%clk 0:02:59.4]} 9. O-O {[%clk 0:02:55.2]} 9... O-O
{[%clk 0:02:59.8]} 10. h3 {[%clk 0:02:53.3]} 10... Nc6 {[%clk 0:02:58.4]} 11.
Be3 {[%clk 0:02:53.7]} 11... b6 {[%clk 0:02:55.3]} 12. Rc1 {[%clk 0:02:48.4]}
12... Bb7 {[%clk 0:02:55]} 13. Qa4 {[%clk 0:02:34.9]} 13... Nd5 {[%clk 0:02:43]}
14. Rfd1 {[%clk 0:02:33.9]} 14... Bf6 {[%clk 0:02:39.1]} 15. Ne4 {[%clk
0:02:33.1]} 15... Qb4 {[%clk 0:02:18.1]} 16. Nxf6+ {[%clk 0:02:31.8]} 16... Nxf6
{[%clk 0:02:18.9]} 17. Qxb4 {[%clk 0:02:01.8]} 17... Nxb4 {[%clk 0:02:19.8]} 18.
Rc7 {[%clk 0:02:02]} 18... Bxf3 {[%clk 0:02:03.4]} 19. Bxf3 {[%clk 0:02:01.8]}
19... Nbd5 {[%clk 0:02:03.7]} 20. Rc6 {[%clk 0:01:56.9]} 20... Rac8 {[%clk
0:02:01.5]} 21. Rdc1 {[%clk 0:01:56.9]} 21... Rxc6 {[%clk 0:02:01.3]} 22. Rxc6
{[%clk 0:01:57.8]} 22... Rd8 {[%clk 0:01:55.9]} 23. a3 {[%clk 0:01:51.5]} 23...
Kf8 {[%clk 0:01:55.2]} 24. Kf1 {[%clk 0:01:50.6]} 24... Ke7 {[%clk 0:01:50.2]}
25. Ke2 {[%clk 0:01:50.7]} 25... Kd7 {[%clk 0:01:49.5]} 26. Rc1 {[%clk 0:01:50]}
26... Rc8 {[%clk 0:01:29.9]} 27. Rxc8 {[%clk 0:01:48]} 27... Kxc8 {[%clk
0:01:30.8]} 28. Bd2 {[%clk 0:01:48.6]} 28... g6 {[%clk 0:01:26.2]} 29. Kd3
{[%clk 0:01:48.6]} 29... Kc7 {[%clk 0:01:24.7]} 30. g4 {[%clk 0:01:48.5]} 30...
Kd6 {[%clk 0:01:23.5]} 31. Bd1 {[%clk 0:01:47.5]} 31... h5 {[%clk 0:01:19.8]}
32. f4 {[%clk 0:01:44.4]} 32... hxg4 {[%clk 0:01:18.7]} 33. hxg4 {[%clk
0:01:45.3]} 33... Ne8 {[%clk 0:01:09.9]} 34. Bf3 {[%clk 0:01:45]} 34... f5
{[%clk 0:01:09]} 35. a4 {[%clk 0:01:38.7]} 35... Ng7 {[%clk 0:01:06.2]} 36. b3
{[%clk 0:01:30.7]} 36... fxg4 {[%clk 0:00:57.7]} 37. Bxg4 {[%clk 0:01:30.8]}
37... Nh5 {[%clk 0:00:57.9]} 38. Bxh5 {[%clk 0:01:22.3]} 38... gxh5 {[%clk
0:00:58.8]} 39. Ke4 {[%clk 0:01:22.9]} 39... Nf6+ {[%clk 0:00:57]} 40. Kf3
{[%clk 0:01:23.2]} 40... Kd5 {[%clk 0:00:57.3]} 41. Be3 {[%clk 0:01:21.9]} 41...
Ng4 {[%clk 0:00:52.6]} 42. Bg1 {[%clk 0:01:21.5]} 42... Nh6 {[%clk 0:00:52.7]}
43. Ke3 {[%clk 0:01:15.7]} 43... Nf5+ {[%clk 0:00:52.7]} 44. Kd3 {[%clk
0:01:16.1]} 44... a6 {[%clk 0:00:51.5]} 45. Bf2 {[%clk 0:01:15.5]} 45... h4
{[%clk 0:00:50.6]} 46. Bg1 {[%clk 0:01:15.1]} 46... b5 {[%clk 0:00:50.5]} 47.
Bf2 {[%clk 0:01:11.8]} 47... h3 {[%clk 0:00:50.5]} 48. Bg1 {[%clk 0:01:12.3]}
48... Ng3 {[%clk 0:00:46.6]} 49. axb5 {[%clk 0:01:07.3]} 49... axb5 {[%clk
0:00:45.7]} 50. Ke3 {[%clk 0:01:05.1]} 50... h2 {[%clk 0:00:44.3]} 51. Bxh2
{[%clk 0:01:02]} 51... Nf1+ {[%clk 0:00:44.4]} 52. Kf2 {[%clk 0:01:02.6]} 52...
Nxh2 {[%clk 0:00:44.6]} 53. Kg3 {[%clk 0:01:03.1]} 53... Nf1+ {[%clk 0:00:43.3]}
54. Kg4 {[%clk 0:01:03.4]} 54... Nd2 {[%clk 0:00:43]} 55. Kg5 {[%clk 0:01:03.8]}
55... Nxb3 {[%clk 0:00:43.2]} 56. Kf6 {[%clk 0:01:04]} 56... Nxd4 {[%clk
0:00:42.8]} 0-1

[Event "*** Titled Tuesday Blitz"]
[Site "Chess.com"]
[Date "2020.05.26"]
[Round "5"]
[White "Love_craft"]
[Black "Pavel_Mir"]
[Result "1-0"]
[WhiteElo "2479"]
[BlackElo "2229"]
[TimeControl "180+1"]
[EndTime "10:55:49 PDT"]
[Termination "Love_craft won by resignation"]

1. Nf3 {[%clk 0:03:00.9]} 1... g6 {[%clk 0:02:58]} 2. e4 {[%clk 0:02:59.7]} 2...
Bg7 {[%clk 0:02:57.7]} 3. d4 {[%clk 0:03:00.3]} 3... d6 {[%clk 0:02:57.6]} 4.
Bc4 {[%clk 0:02:58.8]} 4... Nf6 {[%clk 0:02:54.9]} 5. Nc3 {[%clk 0:02:58.3]}
5... O-O {[%clk 0:02:54.2]} 6. h3 {[%clk 0:02:53.4]} 6... Nxe4 {[%clk
0:02:53.9]} 7. Nxe4 {[%clk 0:02:53.4]} 7... d5 {[%clk 0:02:54.1]} 8. Bd3 {[%clk
0:02:54]} 8... dxe4 {[%clk 0:02:54.5]} 9. Bxe4 {[%clk 0:02:54.9]} 9... Nd7
{[%clk 0:02:53.4]} 10. O-O {[%clk 0:02:52.2]} 10... c5 {[%clk 0:02:53.6]} 11. c3
{[%clk 0:02:46.6]} 11... cxd4 {[%clk 0:02:50]} 12. Nxd4 {[%clk 0:02:47.5]} 12...
Nc5 {[%clk 0:02:46.1]} 13. Bc2 {[%clk 0:02:40]} 13... e5 {[%clk 0:02:35.8]} 14.
Nb3 {[%clk 0:02:19.5]} 14... Ne6 {[%clk 0:02:21.1]} 15. Qxd8 {[%clk 0:02:11.4]}
15... Rxd8 {[%clk 0:02:20.4]} 16. Be3 {[%clk 0:02:12]} 16... f5 {[%clk
0:02:08.5]} 17. Rfd1 {[%clk 0:02:08.9]} 17... Bd7 {[%clk 0:02:02.4]} 18. Rd5
{[%clk 0:01:50.7]} 18... Bc6 {[%clk 0:01:56.1]} 19. Rxd8+ {[%clk 0:01:49.9]}
19... Rxd8 {[%clk 0:01:55.4]} 20. Bxa7 {[%clk 0:01:47.9]} 20... f4 {[%clk
0:01:46.6]} 21. Bb6 {[%clk 0:01:35.2]} 21... Ra8 {[%clk 0:01:42.4]} 22. Nc5
{[%clk 0:01:27.2]} 22... Bd5 {[%clk 0:01:22.1]} 23. Nxe6 {[%clk 0:01:18.6]}
23... Bxe6 {[%clk 0:01:21.8]} 24. a4 {[%clk 0:01:17.2]} 24... Kf7 {[%clk
0:01:12.1]} 25. Be4 {[%clk 0:01:12.5]} 25... h5 {[%clk 0:01:04.7]} 26. a5 {[%clk
0:01:10.3]} 26... Rb8 {[%clk 0:00:53.4]} 27. Bc7 {[%clk 0:00:30.2]} 27... Rc8
{[%clk 0:00:49.5]} 28. Bxb7 {[%clk 0:00:30.5]} 28... Rxc7 {[%clk 0:00:49.7]} 29.
a6 {[%clk 0:00:31]} 29... Bc8 {[%clk 0:00:47]} 30. Bd5+ {[%clk 0:00:31]} 30...
Ke7 {[%clk 0:00:20.2]} 31. a7 {[%clk 0:00:30.3]} 1-0

[Event "*** Titled Tuesday Blitz"]
[Site "Chess.com"]
[Date "2020.05.26"]
[Round "5"]
[White "Bubachess1608"]
[Black "Kapibara_Warri0r"]
[Result "1-0"]
[WhiteElo "2304"]
[BlackElo "2079"]
[TimeControl "180+1"]
[EndTime "10:55:51 PDT"]
[Termination "Bubachess1608 won on time"]

1. e4 {[%clk 0:03:00.9]} 1... e5 {[%clk 0:02:59.8]} 2. Bc4 {[%clk 0:02:58.7]}
2... Nf6 {[%clk 0:02:57]} 3. d3 {[%clk 0:02:58.1]} 3... Be7 {[%clk 0:02:55.4]}
4. Nf3 {[%clk 0:02:56.7]} 4... Nc6 {[%clk 0:02:54.9]} 5. O-O {[%clk 0:02:56]}
5... O-O {[%clk 0:02:54.5]} 6. Bb3 {[%clk 0:02:56.1]} 6... d6 {[%clk 0:02:50.9]}
7. h3 {[%clk 0:02:51.6]} 7... Kh8 {[%clk 0:02:49.2]} 8. Re1 {[%clk 0:02:51.2]}
8... Ng8 {[%clk 0:02:41.5]} 9. c3 {[%clk 0:02:50.3]} 9... f5 {[%clk 0:02:40.7]}
10. Nbd2 {[%clk 0:02:47.5]} 10... g5 {[%clk 0:02:19]} 11. exf5 {[%clk
0:02:42.9]} 11... Bxf5 {[%clk 0:02:16.8]} 12. Ne4 {[%clk 0:02:42.3]} 12... g4
{[%clk 0:02:10.1]} 13. Nfg5 {[%clk 0:02:39.6]} 13... d5 {[%clk 0:01:48.8]} 14.
hxg4 {[%clk 0:02:34.4]} 14... Bc8 {[%clk 0:01:00.5]} 15. Nxh7 {[%clk 0:02:33.6]}
15... dxe4 {[%clk 0:00:53.3]} 16. Nxf8 {[%clk 0:02:31.5]} 16... Qxf8 {[%clk
0:00:49.8]} 17. dxe4 {[%clk 0:02:30.4]} 17... Qg7 {[%clk 0:00:46.5]} 18. g5
{[%clk 0:02:23.9]} 18... Qh7 {[%clk 0:00:24.5]} 19. Bxg8 {[%clk 0:02:09.9]}
19... Qxg8 {[%clk 0:00:22.9]} 20. Qh5+ {[%clk 0:02:05.7]} 20... Kg7 {[%clk
0:00:22.9]} 21. Qh6+ {[%clk 0:01:49.1]} 21... Kf7 {[%clk 0:00:22.3]} 22. Re3
{[%clk 0:01:48.5]} 22... Be6 {[%clk 0:00:20.9]} 23. Rf3+ {[%clk 0:01:47.2]}
23... Ke8 {[%clk 0:00:21.4]} 24. g6 {[%clk 0:01:42.9]} 24... Kd7 {[%clk
0:00:20.7]} 25. Bg5 {[%clk 0:01:41.6]} 25... Bd6 {[%clk 0:00:20.7]} 26. g7
{[%clk 0:01:34.7]} 26... Bg4 {[%clk 0:00:20.5]} 27. Rg3 {[%clk 0:01:30.2]} 27...
Be6 {[%clk 0:00:20.1]} 28. Rd1 {[%clk 0:01:27.6]} 28... Qf7 {[%clk 0:00:19.9]}
29. b3 {[%clk 0:01:23.8]} 29... Rg8 {[%clk 0:00:18.2]} 30. Be3 {[%clk
0:01:22.9]} 30... Kc8 {[%clk 0:00:17.3]} 31. c4 {[%clk 0:01:21.3]} 31... Nd4
{[%clk 0:00:15.4]} 32. Rd2 {[%clk 0:01:11.4]} 32... Bb4 {[%clk 0:00:13.4]} 33.
Rxd4 {[%clk 0:01:09.1]} 33... exd4 {[%clk 0:00:13.1]} 34. Bxd4 {[%clk
0:01:09.2]} 34... Bd6 {[%clk 0:00:11.9]} 35. Rf3 {[%clk 0:01:08.9]} 35... Qe7
{[%clk 0:00:10.6]} 36. c5 {[%clk 0:01:05.4]} 36... Bxc5 {[%clk 0:00:07.5]} 37.
Bxc5 {[%clk 0:01:03.1]} 37... Qxc5 {[%clk 0:00:07.2]} 38. Qxe6+ {[%clk
0:01:01.5]} 38... Kd8 {[%clk 0:00:06.6]} 39. Qxg8+ {[%clk 0:01:00.8]} 1-0

[Event "*** Titled Tuesday Blitz"]
[Site "Chess.com"]
[Date "2020.05.26"]
[Round "5"]
[White "Vitor-Moraes"]
[Black "Srisshhhtea"]
[Result "0-1"]
[WhiteElo "1980"]
[BlackElo "2177"]
[TimeControl "180+1"]
[EndTime "10:55:52 PDT"]
[Termination "Srisshhhtea won by resignation"]

1. e4 {[%clk 0:03:00.9]} 1... e6 {[%clk 0:02:59.3]} 2. d4 {[%clk 0:02:59.5]}
2... d5 {[%clk 0:02:59]} 3. Nd2 {[%clk 0:03:00.1]} 3... Be7 {[%clk 0:02:58.3]}
4. e5 {[%clk 0:02:58.4]} 4... c5 {[%clk 0:02:56.3]} 5. c3 {[%clk 0:02:57.9]}
5... Qb6 {[%clk 0:02:56.2]} 6. Ne2 {[%clk 0:02:51.5]} 6... Bd7 {[%clk
0:02:53.5]} 7. Nf3 {[%clk 0:02:47.8]} 7... Nh6 {[%clk 0:02:43.8]} 8. Ng3 {[%clk
0:02:47.8]} 8... Bb5 {[%clk 0:02:40]} 9. Bxb5+ {[%clk 0:02:45.4]} 9... Qxb5
{[%clk 0:02:40.9]} 10. Qe2 {[%clk 0:02:45.8]} 10... Qxe2+ {[%clk 0:02:34.3]} 11.
Nxe2 {[%clk 0:02:46.7]} 11... Nf5 {[%clk 0:02:33]} 12. g4 {[%clk 0:02:43.9]}
12... Nh4 {[%clk 0:02:32]} 13. Nxh4 {[%clk 0:02:27.9]} 13... Bxh4 {[%clk
0:02:32.9]} 14. dxc5 {[%clk 0:02:27.7]} 14... Nd7 {[%clk 0:02:32.1]} 15. Bf4
{[%clk 0:02:12]} 15... Nxc5 {[%clk 0:02:28.7]} 16. O-O {[%clk 0:01:41.9]} 16...
Nd3 {[%clk 0:02:26.8]} 17. Rab1 {[%clk 0:01:39]} 17... O-O {[%clk 0:02:17.4]}
18. f3 {[%clk 0:01:11.2]} 18... g5 {[%clk 0:01:58.7]} 19. Be3 {[%clk 0:01:06.7]}
19... Nxe5 {[%clk 0:01:56.6]} 20. Bd4 {[%clk 0:01:04.7]} 20... Nc6 {[%clk
0:01:53.4]} 21. Bc5 {[%clk 0:00:58.9]} 21... Rfe8 {[%clk 0:01:52]} 22. b3 {[%clk
0:00:59.1]} 22... f5 {[%clk 0:01:49.7]} 23. h3 {[%clk 0:00:57.8]} 23... Rad8
{[%clk 0:01:46.2]} 24. Kg2 {[%clk 0:00:44.3]} 24... Ne5 {[%clk 0:01:39.7]} 25.
Rbd1 {[%clk 0:00:39]} 25... Rd7 {[%clk 0:01:26.4]} 26. Nd4 {[%clk 0:00:31.2]}
26... fxg4 {[%clk 0:01:21.2]} 27. fxg4 {[%clk 0:00:25.6]} 27... Ng6 {[%clk
0:01:19.6]} 28. Rf6 {[%clk 0:00:23.5]} 28... Nf4+ {[%clk 0:01:16.2]} 29. Kh2
{[%clk 0:00:21.7]} 29... Kg7 {[%clk 0:01:13.9]} 30. Rxf4 {[%clk 0:00:15.2]}
30... gxf4 {[%clk 0:01:08.7]} 31. Nf3 {[%clk 0:00:13.8]} 31... Bg3+ {[%clk
0:01:06.5]} 32. Kg2 {[%clk 0:00:13.9]} 32... e5 {[%clk 0:01:06.9]} 33. Nxe5
{[%clk 0:00:11.9]} 33... Rxe5 {[%clk 0:01:05.3]} 34. Bd4 {[%clk 0:00:12.3]}
34... Kf6 {[%clk 0:01:04.6]} 35. g5+ {[%clk 0:00:09.8]} 35... Kf5 {[%clk
0:01:03.7]} 36. Bxe5 {[%clk 0:00:07.8]} 36... Kxe5 {[%clk 0:01:04.6]} 37. c4
{[%clk 0:00:06.9]} 37... d4 {[%clk 0:01:03.3]} 0-1

[Event "*** Titled Tuesday Blitz"]
[Site "Chess.com"]
[Date "2020.05.26"]
[Round "5"]
[White "12teen"]
[Black "Korchmar_Vasiliy"]
[Result "1-0"]
[WhiteElo "2734"]
[BlackElo "2571"]
[TimeControl "180+1"]
[EndTime "10:55:54 PDT"]
[Termination "12teen won by resignation"]

1. g3 {[%clk 0:03:00.9]} 1... d5 {[%clk 0:02:59.7]} 2. Bg2 {[%clk 0:03:01.8]}
2... g6 {[%clk 0:02:59.3]} 3. d3 {[%clk 0:03:02.1]} 3... Bg7 {[%clk 0:02:59.4]}
4. Nc3 {[%clk 0:03:02.7]} 4... d4 {[%clk 0:02:49.3]} 5. Ne4 {[%clk 0:03:02.9]}
5... e5 {[%clk 0:02:40.8]} 6. c4 {[%clk 0:03:02.8]} 6... h6 {[%clk 0:02:30.7]}
7. b4 {[%clk 0:03:02.2]} 7... Ne7 {[%clk 0:02:28.4]} 8. a4 {[%clk 0:03:01.1]}
8... O-O {[%clk 0:02:26.2]} 9. Ba3 {[%clk 0:02:58.1]} 9... f5 {[%clk 0:02:24.6]}
10. Nd2 {[%clk 0:02:56.6]} 10... c6 {[%clk 0:02:14.3]} 11. h4 {[%clk 0:02:55.2]}
11... Be6 {[%clk 0:02:12]} 12. b5 {[%clk 0:02:47.9]} 12... Rf7 {[%clk
0:02:06.5]} 13. Nb3 {[%clk 0:02:45.8]} 13... Nd7 {[%clk 0:02:05.1]} 14. Nf3
{[%clk 0:02:44.1]} 14... Rc8 {[%clk 0:01:52.1]} 15. Nfd2 {[%clk 0:02:42.3]}
15... b6 {[%clk 0:01:36.8]} 16. Bxe7 {[%clk 0:02:31.1]} 16... Qxe7 {[%clk
0:01:37]} 17. Bxc6 {[%clk 0:02:19.2]} 17... e4 {[%clk 0:01:37.5]} 18. dxe4
{[%clk 0:02:12.4]} 18... f4 {[%clk 0:01:37.9]} 19. gxf4 {[%clk 0:02:00.4]} 19...
Rxf4 {[%clk 0:01:36.1]} 20. Qc2 {[%clk 0:01:54.5]} 20... Ne5 {[%clk 0:01:29.5]}
21. Rg1 {[%clk 0:01:16.5]} 21... Nxc6 {[%clk 0:01:22.9]} 22. bxc6 {[%clk
0:01:14.7]} 22... Bf7 {[%clk 0:01:15]} 23. a5 {[%clk 0:01:05.7]} 23... Rxc6
{[%clk 0:01:14.4]} 24. axb6 {[%clk 0:01:02.8]} 24... axb6 {[%clk 0:01:15.3]} 25.
Ra8+ {[%clk 0:00:59.1]} 25... Kh7 {[%clk 0:01:15.7]} 26. h5 {[%clk 0:00:54.8]}
26... Qb4 {[%clk 0:00:56.2]} 27. Ra7 {[%clk 0:00:42.2]} 27... Rxc4 {[%clk
0:00:42.9]} 28. hxg6+ {[%clk 0:00:42]} 28... Bxg6 {[%clk 0:00:23.7]} 29. Qxc4
{[%clk 0:00:40.4]} 29... Qf8 {[%clk 0:00:24.6]} 30. Qe6 {[%clk 0:00:24.7]} 30...
Rf6 {[%clk 0:00:22.2]} 31. Qe7 {[%clk 0:00:23.7]} 31... Rxf2 {[%clk 0:00:14.5]}
32. Qxg7+ {[%clk 0:00:23.8]} 1-0